bitfinex-derivatives/quotes_ETHF0:USTF0_20251006
["timestamp","ask_amount","ask_price","bid_price","bid_amount"]
[1759773565802,0.7319,4698.2,4698.1,0.00202091]
[1759773566102,1.21872249,4698.2,4698.1,0.38496091]
[1759773566405,1.21872249,4698.2,4698.1,0.00202091]
[1759773567002,3.952429,4698.2,4698.1,0.00202091]
[1759773567198,3.952429,4698.2,4697.3,0.3025]
[1759773567199,3.635129,4698.2,4697.3,0.3025]
[1759773567402,0.7319,4697.4,4697.3,0.5162]
[1759773567602,0.7319,4697.4,4697.3,0.5967]
[1759773568303,0.7319,4697.4,4697.3,0.90167884]
[1759773568700,0.7319,4697.4,4697.3,1.10597884]
[1759773568906,0.7319,4697.4,4697.3,0.59917884]
[1759773569208,1.21990137,4697.4,4697.3,0.59917884]
[1759773569507,1.21990137,4697.4,4697.3,0.90167884]
[1759773570105,1.21990137,4697.4,4697.3,0.59917884]
[1759773570706,1.21990137,4697.4,4697.3,0.90167884]
[1759773570908,1.21990137,4697.4,4697.3,0.38547884]
[1759773571607,1.21990137,4697.4,4697.3,0.00247884]
[1759773571803,4.01947098,4697.4,4697.3,0.00247884]
[1759773572911,4.01947098,4697.4,4697.3,0.38547884]
[1759773577409,4.01947098,4697.4,4697.3,0.59917884]
[1759773577706,1.21990137,4697.4,4697.3,1.12877884]
[1759773577916,0.48800137,4697.4,4697.3,6.12877884]
[1759773579608,0.5143,4698.7,4698.6,0.5919]
[1759773579812,0.1229,4699.0,4698.6,0.5919]
[1759773579813,1.64051851,4699.0,4698.9,0.38287]
[1759773580011,0.2101,4699.0,4698.9,1.12147]
[1759773580309,1.92921851,4699.0,4698.9,1.12147]
[1759773580513,0.8479,4699.0,4698.9,0.80397]
[1759773580714,0.8479,4699.0,4698.9,1.12147]
[1759773582315,2.03191851,4699.2,4699.1,0.38286]
[1759773582512,0.5143,4699.2,4699.1,1.12146]
[1759773582913,0.5143,4699.2,4699.0,0.1296]
[1759773582914,0.51678881,4699.5,4699.4,0.4211]
[1759773583113,0.51678881,4699.5,4699.4,0.7386]
[1759773583413,0.00248881,4699.5,4699.4,0.7386]
[1759773584411,0.71828881,4699.5,4699.4,0.7386]
[1759773585014,0.21258881,4699.5,4699.4,0.7386]
[1759773585624,0.00248881,4699.5,4699.4,0.7386]
[1759773586116,0.41408881,4699.5,4699.4,0.5265]
[1759773586418,0.41408881,4699.5,4699.4,0.7386]
[1759773586419,0.71828881,4699.5,4699.4,0.7386]
[1759773588113,0.83908881,4699.5,4699.3,0.38284]
[1759773588312,0.86238881,4699.5,4699.4,0.5302]
[1759773588619,0.86238881,4699.5,4699.4,0.7479]
[1759773588820,0.74158881,4699.5,4699.4,0.7479]
[1759773590422,0.86238881,4699.5,4699.0,0.3264]
[1759773590624,0.86238881,4699.5,4698.3,0.95729]
[1759773590625,0.8635,4699.0,4698.9,0.38286]
[1759773591112,0.8635,4699.0,4698.9,0.91306]
[1759773591511,1.34929519,4699.0,4698.9,0.91306]
[1759773592618,1.34929519,4699.0,4698.9,0.58666]
[1759773592824,1.34929519,4699.0,4698.9,0.38286]
[1759773593626,1.34929519,4699.0,4698.9,0.58666]
[1759773594324,1.34929519,4699.0,4698.9,0.91306]
[1759773595226,1.34929519,4699.0,4698.9,0.58666]
[1759773595724,1.34929519,4699.0,4698.9,0.38286]
[1759773595925,1.34929519,4699.0,4698.9,0.58666]
[1759773597025,1.34929519,4699.0,4698.9,0.91306]
[1759773597925,1.34929519,4699.0,4698.9,0.58666]
[1759773599620,1.34929519,4699.0,4698.9,0.38286]
[1759773600121,1.34929519,4699.0,4698.9,0.58666]
[1759773600825,1.34929519,4699.0,4698.9,1.13076]
[1759773601125,1.02659519,4699.0,4698.9,1.13076]
[1759773601324,1.02659519,4699.0,4697.6,9.57441]
[1759773601325,0.2133,4698.2,4698.1,0.5302]
[1759773601525,0.7427,4698.2,4698.1,0.7479]
[1759773601731,0.5294,4697.6,4697.5,1.13088]
[1759773601921,1.22873902,4697.6,4697.5,1.13088]
[1759773602322,0.69933902,4697.6,4697.5,1.13088]
[1759773602521,0.536,4698.5,4698.4,0.2038]
[1759773602728,1.22878297,4698.5,4698.4,0.7479]
[1759773603127,1.34958297,4698.5,4698.4,0.2038]
[1759773603329,1.34958297,4698.5,4698.0,0.38294]
[1759773603525,0.2133,4698.1,4698.0,0.38294]
[1759773603726,0.7427,4698.1,4698.0,0.38294]
[1759773604030,0.8635,4698.0,4697.9,0.38295]
[1759773604228,1.34958297,4698.0,4697.9,0.38295]
[1759773604731,1.34958297,4698.0,4697.9,0.91315]
[1759773604926,1.34958297,4698.0,4697.9,0.2038]
[1759773605134,1.34958297,4698.0,4697.4,0.3264]
[1759773605330,0.7427,4697.5,4697.4,1.13089]
[1759773605629,0.48608297,4697.5,4697.4,1.13089]
[1759773605832,0.5408,4697.9,4697.8,0.7479]
[1759773606133,1.22897152,4697.9,4697.8,0.4215]
[1759773606431,1.22897152,4697.9,4697.8,0.2038]
[1759773607327,1.22897152,4697.9,4697.8,0.7479]
[1759773607328,1.02707152,4697.9,4697.8,0.7479]
[1759773607529,1.22897152,4697.9,4697.8,0.2038]
[1759773608636,1.22897152,4697.9,4697.7,0.38297]
[1759773608931,1.22897152,4697.8,4697.7,0.58677]
[1759773609134,1.22897152,4697.8,4697.7,1.13087]
[1759773609934,1.22897152,4697.8,4697.7,0.38297]
[1759773610922,1.22897152,4697.8,4697.7,0.58677]
[1759773611235,1.22897152,4697.8,4697.7,1.13087]
[1759773611834,0.69957152,4697.8,4697.7,1.13087]
[1759773612223,1.02707152,4697.8,4697.7,1.13087]
[1759773612928,1.22897152,4697.8,4697.7,1.13087]
[1759773613628,1.22742427,4697.8,4697.7,0.58677]
[1759773613833,1.22742427,4697.8,4697.7,0.91317]
[1759773614033,1.22742427,4697.8,4697.7,0.58677]
[1759773614230,1.22742427,4697.8,4697.7,0.2038]
[1759773614430,1.22742427,4697.8,4697.6,0.38297]
[1759773614634,1.22742427,4697.7,4697.6,0.58677]
[1759773616040,1.22742427,4697.7,4697.6,0.91317]
[1759773616442,1.22742427,4697.7,4697.6,0.58677]
[1759773618837,1.22742427,4697.7,4697.6,0.2038]
[1759773619040,0.4042,4697.4,4697.3,0.00247884]
[1759773619241,1.22182427,4697.4,4697.3,0.00247884]
[1759773619933,0.48472427,4697.4,4697.3,0.75967884]
[1759773620139,0.1208,4698.0,4697.3,0.75967884]
[1759773620140,0.68860493,4697.7,4697.6,0.81588]
[1759773620342,1.22230493,4697.7,4697.6,1.14018]
[1759773622337,1.22230493,4697.7,4697.6,0.2217]
[1759773623043,0.664,4697.5,4697.3,0.00247884]
[1759773623348,1.22230493,4697.4,4697.3,0.00247884]
[1759773629455,0.4042,4696.4,4696.3,3.7538]
[1759773629655,1.22230493,4696.4,4696.3,3.2078]
[1759773630347,1.60538493,4696.4,4696.3,0.00210506]
[1759773631748,1.81938493,4696.4,4696.3,0.00210506]
[1759773632147,1.98540592,4696.4,4696.3,0.00210506]
[1759773633359,0.7371,4695.4,4695.3,3.6407]
[1759773633549,1.22230493,4695.4,4695.3,3.965]
[1759773633857,0.48520493,4695.4,4695.3,3.965]
[1759773634155,0.5363,4695.4,4695.3,3.965]
[1759773634349,1.02358781,4695.4,4695.3,3.96730804]
[1759773635753,1.22438781,4695.4,4695.3,3.43210804]
[1759773635947,1.22427944,4695.4,4695.3,3.96820804]
[1759773636144,1.22427944,4695.4,4695.3,3.64020804]
[1759773636951,1.22427944,4695.4,4695.3,3.43210804]
[1759773637257,1.22427944,4695.4,4695.3,3.76010804]
[1759773637758,1.22427944,4695.4,4695.3,3.43210804]
[1759773638248,1.22427944,4695.4,4695.3,0.22430804]
[1759773638556,1.22427944,4695.4,4695.3,0.00230804]
[1759773639351,3.96856867,4695.4,4695.3,0.00230804]
[1759773639561,0.714,4694.7,4694.6,3.2078]
[1759773639759,1.19910804,4694.7,4694.6,3.2078]
[1759773641459,0.48510804,4694.7,4694.6,3.96864065]
[1759773642161,0.99700804,4694.7,4694.6,3.96864065]
[1759773645060,1.19910804,4694.7,4694.6,3.96864065]
[1759773645359,1.19910804,4694.7,4694.6,3.21054065]
[1759773645754,0.48510804,4694.7,4694.6,3.96864065]
[1759773646456,0.2075,4695.2,4695.1,1.14128]
[1759773646663,0.69205867,4695.2,4695.1,1.14128]
[1759773647051,0.21608288,4695.4,4695.3,1.14126]
[1759773647052,0.00208288,4695.4,4695.3,1.14126]
[1759773647262,0.00208288,4695.4,4695.3,1.35526]
[1759773648464,0.48679102,4695.4,4695.3,1.14126]
[1759773650061,1.22979102,4695.4,4695.3,0.7581]
[1759773650564,0.69089102,4695.4,4695.3,0.7581]
[1759773650759,0.48679102,4695.4,4695.3,0.7581]
[1759773650963,0.69089102,4695.4,4695.3,0.7581]
[1759773651367,0.48679102,4695.4,4695.3,0.7581]
[1759773653377,0.48679102,4695.4,4695.3,0.9721]
[1759773654060,0.5347,4696.5,4696.4,0.7338]
[1759773654367,1.0183584,4696.5,4696.4,0.7338]
[1759773654770,0.6877584,4696.5,4696.4,0.7338]
[1759773654970,0.68931078,4696.5,4696.4,0.7338]
[1759773655171,0.48521078,4696.5,4696.4,0.7338]
[1759773656166,0.68931078,4696.5,4696.4,0.7338]
[1759773657067,1.01991078,4696.5,4696.4,0.7338]
[1759773660169,0.3306,4696.1,4695.7,0.38313]
[1759773660374,5.61491078,4696.5,4695.5,3.7327]
[1759773660375,0.4124,4695.6,4695.5,3.7327]
[1759773660578,0.4124,4695.6,4695.5,3.9416]
[1759773660772,0.743,4695.6,4695.5,3.9416]
[1759773663271,0.743,4695.6,4695.5,0.4296]
[1759773663476,0.743,4694.9,4694.8,3.4285]
[1759773663676,0.4124,4694.9,4694.2,3.46837065]
[1759773663975,0.743,4694.8,4694.7,0.7338]
[1759773664476,0.1297,4695.5,4695.2,0.3042]
[1759773664477,0.3306,4695.5,4695.2,0.3042]
[1759773664678,0.5347,4695.5,4695.4,0.4296]
[1759773664878,0.2041,4695.5,4695.4,0.7338]
[1759773665066,0.743,4695.9,4695.8,0.7338]
[1759773665474,0.6264,4696.3,4696.2,0.7338]
[1759773665876,0.00155238,4696.5,4696.4,0.7338]
[1759773666075,0.48611543,4696.5,4696.4,0.7338]
[1759773666574,0.69021543,4696.5,4696.4,0.9478]
[1759773666775,0.48611543,4696.5,4696.4,0.7338]
[1759773666979,0.48611543,4696.5,4696.4,0.9478]
[1759773667176,1.02821543,4696.5,4696.4,0.4296]
[1759773667378,0.4124,4695.7,4695.6,0.5249]
[1759773667676,1.22756305,4695.7,4695.6,0.7338]
[1759773668379,0.68866305,4695.7,4695.6,0.7338]
[1759773669081,1.01926305,4695.7,4695.6,0.7338]
[1759773669879,1.22756305,4695.7,4695.2,3.21043286]
[1759773670080,0.4124,4695.7,4695.6,0.5249]
[1759773670679,1.22505551,4695.7,4695.6,0.5249]
[1759773671582,0.4124,4695.3,4695.2,3.73533286]
[1759773671787,1.22505551,4695.3,4695.2,3.73533286]
[1759773671992,1.22505551,4695.3,4695.2,3.94423286]
[1759773672481,0.68615551,4695.3,4695.2,3.94423286]
[1759773672674,0.48205551,4695.3,4695.2,3.94423286]
[1759773672986,1.2252576,4695.9,4695.8,0.2207]
[1759773673182,1.22525557,4695.9,4695.8,0.2207]
[1759773673687,1.22525557,4695.9,4695.8,0.7338]
[1759773674180,0.68635557,4695.9,4695.8,0.7338]
[1759773674386,1.22525557,4695.9,4695.8,0.7338]
[1759773675084,0.48225557,4695.9,4695.8,0.7338]
[1759773675284,0.48225557,4695.9,4695.8,3.9416]
[1759773675481,0.48225557,4695.9,4695.8,8.9416]
[1759773675675,0.00155238,4696.5,4696.4,0.7338]
[1759773675883,0.4841521,4696.5,4696.4,4.53868]
[1759773676187,0.4841521,4696.5,4696.4,9.53868]
[1759773676382,0.4841521,4696.5,4696.4,4.32468]
[1759773676584,0.4841521,4696.5,4696.4,4.53868]
[1759773676783,0.4841521,4696.5,4696.4,9.53868]
[1759773677691,1e-08,4696.5,4696.4,9.53868]
[1759773677887,0.2041,4697.3,4697.2,0.81261]
[1759773678188,0.2097,4697.5,4697.4,0.38299]
[1759773678594,1.23879936,4697.5,4697.2,0.214]
[1759773678795,0.93149936,4697.5,4697.2,0.59701]
[1759773678995,0.7259,4697.4,4697.3,0.2146]
[1759773679883,0.7259,4697.4,4697.3,0.7242]
[1759773681188,0.7259,4697.4,4697.3,0.4167]
[1759773681390,0.7259,4697.4,4697.3,0.7242]
[1759773682991,0.2097,4697.4,4697.3,0.7242]
[1759773683397,0.517,4697.4,4697.3,0.7242]
[1759773683587,0.7259,4697.4,4697.3,0.7242]
[1759773683892,0.7259,4697.4,4697.3,0.4167]
[1759773684385,0.7259,4697.4,4697.3,0.7242]
[1759773684793,0.3073,4697.3,4697.1,0.38302]
[1759773684994,0.7259,4697.2,4697.1,0.38302]
[1759773685192,0.7259,4697.2,4697.1,0.59762]
[1759773686388,0.7259,4697.2,4696.4,3.2078]
[1759773686389,0.1283,4696.5,4696.4,3.2078]
[1759773686582,0.2097,4696.0,4695.9,3.80552]
[1759773686788,0.8542,4696.0,4695.9,0.2146]
[1759773687692,0.8542,4696.0,4695.9,0.7242]
[1759773687890,0.7259,4696.0,4695.9,0.7242]
[1759773688091,0.8542,4696.0,4695.9,0.7242]
[1759773689596,0.7259,4696.4,4696.3,0.4167]
[1759773689796,1.20551172,4696.4,4696.3,0.7242]
[1759773690186,0.47961172,4696.4,4696.3,0.7242]
[1759773690391,0.47961172,4696.4,4696.3,0.9382]
[1759773691088,0.99661172,4696.4,4696.3,0.9382]
[1759773691293,1.20551172,4696.4,4696.3,0.9382]
[1759773692590,1.20551172,4696.4,4696.3,0.7242]
[1759773692897,1.20551172,4696.4,4696.3,0.9382]
[1759773693097,1.20551172,4696.4,4696.3,0.7242]
[1759773693398,1.20551172,4696.4,4696.3,0.9382]
[1759773693596,1.20551172,4696.4,4696.3,0.7242]
[1759773693997,1.20551172,4696.4,4696.3,0.9382]
[1759773694691,0.47961172,4696.4,4696.3,0.9382]
[1759773695597,1.21511172,4696.4,4696.3,0.7242]
[1759773699499,0.69071172,4696.4,4696.3,0.7242]
[1759773699694,0.47961172,4696.4,4696.3,0.7242]
[1759773699889,0.5193,4697.1,4697.0,1.10213]
[1759773700094,0.9988635,4697.1,4697.0,1.10213]
[1759773700295,1.2150635,4697.1,4697.0,1.10213]
[1759773701002,1.5980835,4697.1,4697.0,0.2085]
[1759773701201,0.7355,4696.7,4696.6,0.59156]
[1759773701404,1.2150635,4696.7,4696.6,0.2085]
[1759773701896,0.38306,4696.6,4696.5,0.38306]
[1759773702105,0.8595,4696.5,4696.4,0.59158]
[1759773702293,1.72237637,4696.5,4696.4,0.2085]
[1759773702693,1.33930637,4696.5,4696.4,0.2085]
[1759773702894,1.33930637,4696.5,4696.4,0.59158]
[1759773704503,1.33930637,4696.5,4696.4,0.38308]
[1759773706801,1.33930637,4696.5,4696.2,0.38308]
[1759773707106,0.7355,4696.3,4696.2,0.59158]
[1759773707406,1.21530637,4696.3,4696.2,1.10218]
[1759773708709,0.47980637,4696.3,4696.2,1.10218]
[1759773708901,0.725,4696.5,4696.4,1.11367]
[1759773709102,1.2053344,4696.5,4696.4,1.11367]
[1759773709405,1.7202044,4696.5,4696.4,0.2191]
[1759773709608,0.725,4696.4,4696.3,0.38308]
[1759773709806,1.2053344,4696.4,4696.3,0.38308]
[1759773710106,1.2053344,4696.4,4696.3,0.60218]
[1759773710703,1.2053344,4696.4,4696.2,0.214]
[1759773710898,0.9011344,4696.3,4696.2,0.4331]
[1759773711103,1.2053344,4696.3,4696.2,0.81619]
[1759773711408,1.2053344,4696.3,4696.2,0.60219]
[1759773711609,1.2053344,4696.3,4696.2,0.81619]
[1759773712609,0.725,4696.1,4696.0,0.38311]
[1759773712910,0.725,4695.8,4695.7,0.2191]
[1759773713112,1.2053344,4695.8,4695.7,0.2191]
[1759773714100,1.2053344,4695.8,4695.6,3.2078]
[1759773714101,0.725,4695.7,4695.6,3.2078]
[1759773714305,1.2053344,4695.7,4695.6,3.2078]
[1759773714504,1.2053344,4695.7,4695.6,3.4269]
[1759773714799,1.2053344,4695.7,4695.6,0.2191]
[1759773715700,0.9888344,4695.7,4695.6,0.7306]
[1759773715901,1.2053344,4695.7,4695.6,0.7306]
[1759773716205,1.2053344,4695.7,4695.6,0.9446]
[1759773716611,1.2053344,4695.7,4695.6,0.214]
[1759773716807,1.5884644,4695.7,4695.5,0.38314]
[1759773717008,1.2053344,4695.6,4695.5,1.11804]
[1759773717309,1.2053344,4695.6,4695.5,1.32774]
[1759773717505,0.4803344,4695.6,4695.5,1.44994]
[1759773717808,0.9892611,4695.9,4695.8,1.11372]
[1759773718009,1.2057611,4695.9,4695.8,1.11372]
[1759773720705,0.4807611,4695.9,4695.8,4.32152]
[1759773720915,0.6850611,4695.9,4695.8,4.32152]
[1759773721113,1.20571459,4695.9,4695.8,0.38312]
[1759773721307,1.20571459,4695.9,4695.8,0.60222]
[1759773721507,1.20571459,4695.9,4695.8,1.11372]
[1759773721707,1.20571459,4695.9,4695.8,4.32152]
[1759773721708,0.48071459,4695.9,4695.8,4.32152]
[1759773722808,0.68501459,4695.9,4695.8,4.32152]
[1759773723013,1.20571459,4695.9,4695.8,0.38312]
[1759773723708,0.725,4695.3,4695.2,3.21043286]
[1759773724014,1.20571459,4695.3,4695.2,0.00263286]
[1759773724314,1.20571459,4695.3,4695.2,0.52353286]
[1759773724810,1.20571459,4695.3,4695.2,0.73323286]
[1759773725514,0.48071459,4695.3,4695.2,0.73323286]
[1759773725809,0.3042,4695.8,4695.7,0.38313]
[1759773726014,0.1318,4696.5,4695.9,1.11372]
[1759773726015,0.3042,4696.3,4695.9,1.11372]
[1759773726204,0.68477413,4696.2,4696.1,1.1137]
[1759773726409,0.98897413,4696.2,4696.1,1.1137]
[1759773726615,1.20547413,4696.2,4696.1,0.3831]
[1759773727013,1.20547413,4696.2,4696.1,0.6022]
[1759773728013,1.20547413,4696.2,4695.6,1.11804]
[1759773728014,0.725,4695.7,4695.6,1.11804]
[1759773728215,1.20547413,4695.7,4695.6,1.32774]
[1759773728426,1.20547413,4695.7,4695.6,1.11374]
[1759773728916,0.98897413,4695.7,4695.6,1.11374]
[1759773729118,0.98897413,4695.7,4695.6,4.32154]
[1759773731621,0.68477413,4695.7,4695.6,4.32154]
[1759773731823,0.48047413,4695.7,4695.6,4.32154]
[1759773732121,0.68532504,4695.9,4695.8,0.81192]
[1759773732620,0.68532504,4695.9,4695.8,1.11372]
[1759773733012,0.98952504,4695.9,4695.8,1.11372]
[1759773733416,0.68532504,4695.9,4695.8,1.11372]
[1759773734524,0.48102504,4695.9,4695.8,1.11372]
[1759773735418,1.58921682,4696.1,4696.0,0.3831]
[1759773735717,1.58923713,4696.1,4696.0,0.3831]
[1759773735925,1.58923713,4696.1,4695.7,0.3018]
[1759773736117,0.4208,4695.7,4695.6,0.38314]
[1759773736313,1.20613713,4695.7,4695.6,0.38314]
[1759773736519,0.725,4695.3,4695.0,3.4218]
[1759773736823,1.20613713,4695.3,4695.2,0.38580286]
[1759773737123,1.20613713,4695.3,4695.2,0.60490286]
[1759773737625,1.20613713,4695.3,4695.2,0.00263286]
[1759773742023,4.13121517,4695.3,4695.2,0.00263286]
[1759773742424,1.42013713,4695.3,4695.2,0.43773286]
[1759773742622,1.42013713,4695.3,4695.2,0.00263286]
[1759773743929,4.17504138,4695.3,4695.2,0.00263286]
[1759773744532,0.1305,4694.5,4694.3,0.38324]
[1759773744731,0.1305,4694.5,4694.1,0.38326]
[1759773744732,1.21973713,4694.4,4694.1,0.38326]
[1759773745030,0.7386,4694.2,4694.1,0.38326]
[1759773745225,1.21973713,4694.2,4694.1,0.38326]
[1759773745432,1.21973713,4694.2,4694.1,0.60206]
[1759773745630,1.2213443,4694.2,4694.1,0.90588826]
[1759773746831,1.2213443,4694.2,4694.1,0.60458826]
[1759773747630,1.2213443,4694.2,4694.1,0.38578826]
[1759773749230,1.2213443,4694.2,4694.1,0.90588826]
[1759773751337,0.74020717,4694.2,4694.1,0.90588826]
[1759773751831,1.21934953,4694.2,4694.1,0.60458826]
[1759773752329,0.74020717,4694.2,4694.1,0.60458826]
[1759773752530,0.74020717,4694.2,4694.1,1.12218826]
[1759773752738,1.21902296,4694.2,4694.1,1.12218826]
[1759773753336,0.74020717,4694.2,4694.1,1.12218826]
[1759773753537,1.21907258,4694.2,4694.1,1.12218826]
[1759773753838,1.21907258,4694.2,4694.1,0.82088826]
[1759773755338,1.21907258,4694.2,4694.1,1.12218826]
[1759773759546,0.00160717,4694.2,4694.1,1.33618826]
[1759773759739,0.00160717,4694.2,4694.1,6.33618826]
[1759773760844,0.5388,4695.2,4695.1,1.09858]
[1759773761150,1.01780515,4695.2,4695.1,1.09858]
[1759773761346,1.23610515,4695.2,4695.1,0.7154]
[1759773761548,0.4299,4695.1,4694.5,3.3338]
[1759773761750,0.4299,4694.7,4694.6,0.58642]
[1759773762047,1.23610515,4694.7,4694.6,0.58642]
[1759773762348,1.23610515,4694.7,4694.2,0.38325]
[1759773762349,0.7571,4694.3,4694.2,0.38325]
[1759773762544,1.23610515,4694.3,4694.2,0.38325]
[1759773762744,1.23610515,4694.3,4694.2,0.58645]
[1759773763144,1.23610515,4694.3,4694.2,0.89535]
[1759773763646,1.23610515,4694.3,4694.2,1.09865]
[1759773764843,1.23610515,4694.3,4694.2,0.4065]
[1759773765644,1.23610515,4694.3,4694.2,0.7154]
[1759773765844,1.23610515,4694.3,4694.1,0.00252826]
[1759773766048,1.23610515,4694.2,4694.1,0.00252826]
[1759773766251,1.23610515,4694.2,4694.1,0.20572826]
[1759773766753,0.69060515,4694.2,4694.1,0.71792826]
[1759773767442,0.47900515,4694.2,4694.1,0.71792826]
[1759773767643,0.7571,4694.8,4694.7,0.89541]
[1759773767852,1.23710162,4694.8,4694.7,0.2032]
[1759773768048,0.7339,4694.5,4694.4,1.11894]
[1759773768250,1.21390162,4694.5,4694.4,1.12364]
[1759773769148,0.48000162,4694.5,4694.4,1.12364]
[1759773769354,0.2005,4694.8,4694.7,1.12361]
[1759773769551,1.00844106,4694.8,4694.7,4.33141]
[1759773770550,0.4493579,4694.8,4694.7,4.54541]
[1759773770756,0.00178414,4695.1,4695.0,1.24889]
[1759773770952,0.5282,4696.2,4696.1,1.1235]
[1759773771456,0.5282,4696.2,4696.1,0.7404]
[1759773771457,0.7339,4696.2,4696.1,0.7404]
[1759773771956,0.7358611,4696.2,4696.1,0.7404]
[1759773772158,0.0019611,4696.2,4696.1,0.9544]
[1759773775050,0.0019611,4696.2,4696.1,5.9544]
[1759773775550,0.5301611,4696.2,4696.1,0.7404]
[1759773775747,0.7358611,4696.2,4696.1,0.9544]
[1759773776351,0.7358611,4696.2,4696.1,0.7404]
[1759773776552,0.7358611,4696.2,4696.1,0.9544]
[1759773778452,0.5282,4695.6,4695.5,0.205]
[1759773778657,0.5282,4695.1,4695.0,1.24889]
[1759773778860,0.5282,4695.1,4695.0,1.46289]
[1759773780160,0.5282,4695.1,4695.0,1.24889]
[1759773780453,0.7339,4695.1,4695.0,1.12359]
[1759773781059,0.7339,4695.1,4695.0,0.6377]
[1759773781357,0.7339,4694.9,4694.8,1.3376]
[1759773781557,0.7339,4694.9,4694.8,1.1236]
[1759773782754,1.21206276,4694.9,4694.8,0.4237]
[1759773784664,0.47816276,4694.9,4694.8,0.7404]
[1759773785157,1.21206276,4694.9,4694.8,0.7404]
[1759773785359,1.21206276,4694.9,4694.7,0.38321]
[1759773785660,1.21206276,4694.8,4694.7,0.58821]
[1759773785860,1.21206276,4694.8,4694.7,0.90491]
[1759773786255,0.7339,4694.8,4694.7,1.12361]
[1759773790163,0.12,4694.5,4694.3,0.3167]
[1759773790465,0.7339,4694.3,4694.2,0.205]
[1759773790764,1.21214378,4694.3,4694.2,0.205]
[1759773791463,0.38326,4694.2,4694.1,0.00252826]
[1759773791667,1.59540378,4694.2,4694.1,0.00252826]
[1759773791966,1.21214378,4694.2,4694.1,0.00252826]
[1759773794061,1.21214378,4694.2,4694.1,0.74292826]
[1759773794369,0.5282,4694.6,4694.5,0.80693]
[1759773794565,1.00636763,4694.6,4694.5,1.12363]
[1759773794764,1.00636763,4694.6,4694.5,1.24893]
[1759773795064,0.47816763,4694.6,4694.5,1.24893]
[1759773795264,1.21206763,4694.6,4694.5,1.12363]
[1759773795564,0.2057,4694.2,4694.1,0.20752826]
[1759773795866,1.21206519,4694.2,4694.1,0.20752826]
[1759773796567,0.7339,4694.2,4694.1,0.74292826]
[1759773797261,0.5282,4694.2,4694.1,0.74292826]
[1759773797559,0.7339,4694.6,4694.5,0.4237]
[1759773797759,1.21204801,4694.6,4694.5,0.7404]
[1759773798068,0.7425,4694.2,4694.1,1.12158826]
[1759773798267,1.22064801,4694.2,4694.1,1.12158826]
[1759773798467,1.22064801,4694.2,4694.1,0.79058826]
[1759773798666,1.22064801,4694.2,4694.1,1.12158826]
[1759773798968,1.22064801,4694.2,4694.1,0.00252826]
[1759773799161,1.22064801,4694.2,4694.1,0.20322826]
[1759773799764,1.22064801,4694.2,4694.1,0.00252826]
[1759773799963,3.99474409,4694.2,4694.1,0.00252826]
[1759773800159,0.4303,4693.4,4693.3,3.2078]
[1759773800364,0.7425,4693.3,4693.2,0.5317]
[1759773800563,1.22027853,4693.3,4693.2,0.5317]
[1759773801075,1.22027853,4693.3,4693.2,0.7358]
[1759773801368,0.7425,4693.3,4693.2,0.73827816]
[1759773802361,3.80509,4693.8,4693.2,0.33347816]
[1759773802362,0.3122,4693.7,4693.2,0.33347816]
[1759773802558,0.5319,4693.7,4693.6,1.1191]
[1759773802757,1.22009171,4693.7,4693.6,1.1191]
[1759773802963,1.22009171,4693.7,4693.6,0.7358]
[1759773803165,1.22009171,4693.7,4693.6,1.1191]
[1759773803365,1.22009171,4693.7,4693.6,0.7358]
[1759773804667,1.22009171,4693.7,4693.2,0.00247816]
[1759773804668,0.7425,4693.3,4693.2,0.58650816]
[1759773804963,0.7425,4693.3,4693.2,1.12160816]
[1759773805766,0.4303,4693.3,4693.2,1.12160816]
[1759773805964,0.5319,4693.6,4693.5,0.78811]
[1759773806163,1.00971095,4693.6,4693.5,1.11911]
[1759773806863,1.00971095,4693.6,4693.5,1.24201]
[1759773807872,1.22031095,4693.6,4693.5,1.11911]
[1759773812066,1.22031095,4693.6,4693.5,0.78811]
[1759773812463,1.22031095,4693.6,4693.5,1.11911]
[1759773812663,3.2078,4694.3,4693.5,0.7358]
[1759773812969,0.2197,4695.8,4695.7,0.78793]
[1759773813275,0.4303,4695.8,4695.7,1.33293]
[1759773813473,0.7425,4695.8,4695.7,1.33293]
[1759773814071,0.7425,4695.8,4695.5,0.1229]
[1759773814072,0.2216611,4696.2,4696.1,0.7879]
[1759773814373,0.2216611,4696.2,4696.1,4.3267]
[1759773814574,0.0019611,4696.2,4696.1,4.3267]
[1759773815168,1.51761851,4697.8,4696.1,4.3267]
[1759773815169,0.3122,4697.2,4696.1,3.9436]
[1759773815366,0.7425,4697.2,4697.1,0.2007]
[1759773815771,0.4299,4697.0,4696.9,0.59813]
[1759773815970,0.4299,4697.0,4696.9,1.13193]
[1759773816172,0.43248047,4697.0,4696.9,0.75132416]
[1759773816372,0.76508047,4697.0,4696.9,0.54372416]
[1759773818072,0.76508047,4697.0,4696.9,0.75132416]
[1759773818272,0.43248047,4697.0,4696.9,0.75132416]
[1759773818472,0.22108047,4697.0,4696.9,0.75132416]
[1759773818877,0.00258047,4697.0,4696.9,0.75132416]
[1759773819279,0.00258047,4697.0,4696.9,5.75132416]
[1759773819580,0.7625,4698.1,4698.0,0.7489]
[1759773820171,0.7625,4698.1,4698.0,0.2151]
[1759773820373,0.76448008,4698.1,4698.0,0.2151]
[1759773820573,0.76448008,4698.1,4698.0,0.7489]
[1759773820979,0.76448008,4698.1,4698.0,0.2151]
[1759773821374,0.544,4697.3,4697.2,0.5413]
[1759773821582,0.3326,4697.2,4696.9,2.99512416]
[1759773821783,0.4299,4696.8,4696.7,0.7489]
[1759773821977,0.4299,4696.8,4696.7,1.13195]
[1759773822176,0.2185,4696.8,4696.7,1.34595]
[1759773822477,0.2185,4697.4,4697.3,0.38299]
[1759773822684,0.2185,4697.4,4697.3,0.80831231]
[1759773822977,0.7625,4697.4,4697.3,1.13451231]
[1759773823173,0.4299,4697.4,4697.3,1.13451231]
[1759773823379,4.35522008,4698.1,4698.0,0.2151]
[1759773823576,0.38295,4698.0,4697.8,0.3262]
[1759773823775,0.7625,4697.9,4697.8,0.5413]
[1759773824275,0.7625,4697.9,4697.8,0.7489]
[1759773824473,0.4299,4697.9,4697.8,0.7489]